[Event "*** Titled Tuesday Blitz"]
[Site "Chess.com"]
[Date "2020.10.20"]
[Round "10"]
[White "pastouche06"]
[Black "Savagelittlemole"]
[Result "1-0"]
[WhiteElo "2486"]
[BlackElo "2595"]
[TimeControl "180+1"]
[EndTime "11:57:35 PDT"]
[Termination "pastouche06 won by resignation"]

1. d4 {[%clk 0:03:00.9]} 1... Nf6 {[%clk 0:02:59.7]} 2. c4 {[%clk 0:02:56.2]}
2... e6 {[%clk 0:02:59.9]} 3. Nc3 {[%clk 0:02:54.4]} 3... Bb4 {[%clk 0:02:59.3]}
4. e3 {[%clk 0:02:54.9]} 4... O-O {[%clk 0:02:59]} 5. Ne2 {[%clk 0:02:55]} 5...
c5 {[%clk 0:02:59.2]} 6. a3 {[%clk 0:02:54.9]} 6... Bxc3+ {[%clk 0:02:58.2]} 7.
Nxc3 {[%clk 0:02:55.8]} 7... cxd4 {[%clk 0:02:53.6]} 8. exd4 {[%clk 0:02:56.7]}
8... d5 {[%clk 0:02:53.1]} 9. c5 {[%clk 0:02:56.8]} 9... Nc6 {[%clk 0:02:52.1]}
10. b4 {[%clk 0:02:55.1]} 10... e5 {[%clk 0:02:50.6]} 11. dxe5 {[%clk
0:02:52.4]} 11... Nxe5 {[%clk 0:02:51.5]} 12. Be3 {[%clk 0:02:35.4]} 12... Neg4
{[%clk 0:02:47.5]} 13. Bd4 {[%clk 0:02:34]} 13... Re8+ {[%clk 0:02:47.1]} 14.
Be2 {[%clk 0:02:33.6]} 14... Ne4 {[%clk 0:02:30.5]} 15. O-O {[%clk 0:02:23.7]}
15... Nxc3 {[%clk 0:02:23]} 16. Bxc3 {[%clk 0:02:23.3]} 16... d4 {[%clk
0:02:22.2]} 17. Bxd4 {[%clk 0:02:16.7]} 17... h5 {[%clk 0:02:13.3]} 18. h3
{[%clk 0:02:03.7]} 18... Nf6 {[%clk 0:01:20.8]} 19. Bf3 {[%clk 0:02:01.5]} 19...
Bf5 {[%clk 0:01:13.9]} 20. Bxb7 {[%clk 0:01:53.1]} 20... Qc7 {[%clk 0:01:10.6]}
21. Bxa8 {[%clk 0:01:48.3]} 21... Rxa8 {[%clk 0:01:11.5]} 22. Bxf6 {[%clk
0:01:47.8]} 22... gxf6 {[%clk 0:01:11.4]} 23. Qxh5 {[%clk 0:01:41.7]} 23... Bg6
{[%clk 0:01:09.4]} 24. Qf3 {[%clk 0:01:41.7]} 24... Rd8 {[%clk 0:01:03.6]} 25.
Rad1 {[%clk 0:01:40.1]} 25... Qe7 {[%clk 0:00:55.5]} 26. Rfe1 {[%clk 0:01:32.7]}
26... Rxd1 {[%clk 0:00:53.4]} 27. Qxd1 {[%clk 0:01:33.6]} 27... Qc7 {[%clk
0:00:48.1]} 28. Qd6 {[%clk 0:01:32.9]} 28... Qc8 {[%clk 0:00:45.3]} 29. c6
{[%clk 0:01:31.8]} 29... Kg7 {[%clk 0:00:43.6]} 30. c7 {[%clk 0:01:29.8]} 30...
Bf5 {[%clk 0:00:43.8]} 31. Rc1 {[%clk 0:01:21.3]} 31... Qb7 {[%clk 0:00:33.2]}
32. Qc6 {[%clk 0:01:19.5]} 32... Qc8 {[%clk 0:00:31.5]} 33. Qd6 {[%clk
0:01:09.6]} 33... Qb7 {[%clk 0:00:30.8]} 34. Qg3+ {[%clk 0:01:08.5]} 34... Kf8
{[%clk 0:00:26.5]} 35. Qf3 {[%clk 0:01:06.9]} 35... Qc8 {[%clk 0:00:24.3]} 36.
g4 {[%clk 0:01:05.2]} 36... Be6 {[%clk 0:00:22]} 37. Qxf6 {[%clk 0:01:03.3]}
37... Ke8 {[%clk 0:00:22.5]} 38. Qd8+ {[%clk 0:00:51.7]} 38... Qxd8 {[%clk
0:00:22.2]} 39. cxd8=Q+ {[%clk 0:00:52.6]} 39... Kxd8 {[%clk 0:00:23.1]} 40. Rc5
{[%clk 0:00:52.1]} 40... Ke7 {[%clk 0:00:13]} 41. Ra5 {[%clk 0:00:51.6]} 1-0

[Event "*** Titled Tuesday Blitz"]
[Site "Chess.com"]
[Date "2020.10.20"]
[Round "10"]
[White "UKR_Master"]
[Black "KatarinaOstojic"]
[Result "1-0"]
[WhiteElo "2462"]
[BlackElo "2343"]
[TimeControl "180+1"]
[EndTime "11:57:36 PDT"]
[Termination "UKR_Master won by resignation"]

1. e4 {[%clk 0:03:00.9]} 1... c5 {[%clk 0:02:59.6]} 2. Nf3 {[%clk 0:03:01.1]}
2... d6 {[%clk 0:02:59.7]} 3. d4 {[%clk 0:03:01.7]} 3... cxd4 {[%clk 0:03:00.6]}
4. Nxd4 {[%clk 0:03:02.6]} 4... Nf6 {[%clk 0:03:01.2]} 5. Nc3 {[%clk 0:03:03.4]}
5... a6 {[%clk 0:03:01.9]} 6. h3 {[%clk 0:03:03.4]} 6... e5 {[%clk 0:03:01.8]}
7. Nde2 {[%clk 0:03:03]} 7... Be6 {[%clk 0:03:01.9]} 8. g4 {[%clk 0:03:01.6]}
8... Nbd7 {[%clk 0:02:58.8]} 9. Bg2 {[%clk 0:02:59.8]} 9... h6 {[%clk
0:02:58.7]} 10. O-O {[%clk 0:02:58.5]} 10... Be7 {[%clk 0:02:59.1]} 11. Ng3
{[%clk 0:02:57.4]} 11... O-O {[%clk 0:02:54.8]} 12. Nf5 {[%clk 0:02:48.8]} 12...
Bxf5 {[%clk 0:02:44.9]} 13. exf5 {[%clk 0:02:49.7]} 13... Qc7 {[%clk 0:02:43.9]}
14. f4 {[%clk 0:02:46.7]} 14... exf4 {[%clk 0:02:41.2]} 15. Bxf4 {[%clk
0:02:46.8]} 15... Qb6+ {[%clk 0:02:39]} 16. Kh2 {[%clk 0:02:45.4]} 16... Ne5
{[%clk 0:02:34.9]} 17. b3 {[%clk 0:02:37.1]} 17... Rac8 {[%clk 0:02:32.1]} 18.
Na4 {[%clk 0:02:36]} 18... Qc7 {[%clk 0:02:30.8]} 19. c4 {[%clk 0:02:36.1]}
19... b5 {[%clk 0:02:24.4]} 20. cxb5 {[%clk 0:02:25.3]} 20... axb5 {[%clk
0:02:25.3]} 21. Rc1 {[%clk 0:02:25.8]} 21... Qa5 {[%clk 0:02:22.1]} 22. Bd2
{[%clk 0:02:19.3]} 22... Qa6 {[%clk 0:02:12.9]} 23. Qe2 {[%clk 0:02:15.2]} 23...
Rfe8 {[%clk 0:01:42.3]} 24. Nc3 {[%clk 0:02:05.2]} 24... Rb8 {[%clk 0:01:33]}
25. Rfe1 {[%clk 0:01:56.4]} 25... Qb6 {[%clk 0:01:24.7]} 26. Be3 {[%clk
0:01:50.7]} 26... Qa5 {[%clk 0:01:23.9]} 27. Bd4 {[%clk 0:01:46.8]} 27... b4
{[%clk 0:01:22.5]} 28. Nd1 {[%clk 0:01:35.3]} 28... Nd5 {[%clk 0:01:12.7]} 29.
Qd2 {[%clk 0:01:17.1]} 29... Bg5 {[%clk 0:01:09.8]} 30. Ne3 {[%clk 0:01:11.2]}
30... Bf4+ {[%clk 0:01:08.3]} 31. Kh1 {[%clk 0:01:10.1]} 31... Nxe3 {[%clk
0:01:02]} 32. Bxe3 {[%clk 0:01:09.8]} 32... Bg3 {[%clk 0:00:59]} 33. Red1 {[%clk
0:01:06.9]} 33... Rbd8 {[%clk 0:00:51]} 34. Bxh6 {[%clk 0:00:53.2]} 34... gxh6
{[%clk 0:00:45.7]} 35. Qxh6 {[%clk 0:00:54.1]} 35... Qxa2 {[%clk 0:00:45.4]} 36.
f6 {[%clk 0:00:42.6]} 1-0

[Event "*** Titled Tuesday Blitz"]
[Site "Chess.com"]
[Date "2020.10.20"]
[Round "10"]
[White "SantoBlue"]
[Black "tptagain"]
[Result "0-1"]
[WhiteElo "2799"]
[BlackElo "2919"]
[TimeControl "180+1"]
[EndTime "11:57:38 PDT"]
[Termination "tptagain won by resignation"]

1. Nf3 {[%clk 0:03:00.9]} 1... f5 {[%clk 0:02:59.4]} 2. d3 {[%clk 0:02:56.5]}
2... d6 {[%clk 0:02:58.1]} 3. e4 {[%clk 0:02:56.3]} 3... e5 {[%clk 0:02:57.9]}
4. Nc3 {[%clk 0:02:54.1]} 4... Nc6 {[%clk 0:02:57.4]} 5. exf5 {[%clk 0:02:53]}
5... Nge7 {[%clk 0:02:57.9]} 6. d4 {[%clk 0:02:52.3]} 6... exd4 {[%clk
0:02:55.5]} 7. Nxd4 {[%clk 0:02:51.1]} 7... Nxd4 {[%clk 0:02:55.4]} 8. Qxd4
{[%clk 0:02:52]} 8... Nxf5 {[%clk 0:02:55.1]} 9. Qe4+ {[%clk 0:02:49.9]} 9...
Qe7 {[%clk 0:02:52]} 10. Bd3 {[%clk 0:02:39]} 10... Qxe4+ {[%clk 0:02:44.6]} 11.
Bxe4 {[%clk 0:02:37.8]} 11... c6 {[%clk 0:02:43.2]} 12. O-O {[%clk 0:02:30.7]}
12... d5 {[%clk 0:02:43]} 13. Bd3 {[%clk 0:02:30.8]} 13... Kf7 {[%clk
0:02:31.9]} 14. Bf4 {[%clk 0:02:24.6]} 14... Bd6 {[%clk 0:02:20.3]} 15. Bxd6
{[%clk 0:02:19.9]} 15... Nxd6 {[%clk 0:02:21.2]} 16. Ne2 {[%clk 0:02:19.7]}
16... Bf5 {[%clk 0:02:16.8]} 17. Bxf5 {[%clk 0:02:18]} 17... Nxf5 {[%clk
0:02:17.7]} 18. Ng3 {[%clk 0:02:18.6]} 18... Nd6 {[%clk 0:02:17]} 19. Rfe1
{[%clk 0:02:11.9]} 19... Rhe8 {[%clk 0:02:17.6]} 20. Kf1 {[%clk 0:02:11.2]}
20... a5 {[%clk 0:02:13.2]} 21. Rxe8 {[%clk 0:02:06.1]} 21... Rxe8 {[%clk
0:02:12.9]} 22. Re1 {[%clk 0:02:06.8]} 22... Rb8 {[%clk 0:02:10.5]} 23. Re3
{[%clk 0:02:05.2]} 23... a4 {[%clk 0:02:09.7]} 24. b3 {[%clk 0:02:03]} 24...
axb3 {[%clk 0:02:06.3]} 25. axb3 {[%clk 0:02:03.3]} 25... g6 {[%clk 0:01:57.7]}
26. Rf3+ {[%clk 0:01:56.5]} 26... Ke6 {[%clk 0:01:57.2]} 27. Re3+ {[%clk
0:01:55.8]} 27... Kd7 {[%clk 0:01:57.2]} 28. h4 {[%clk 0:01:55.5]} 28... Ra8
{[%clk 0:01:56.5]} 29. Ke2 {[%clk 0:01:48.3]} 29... Ra2 {[%clk 0:01:30.1]} 30.
Kd2 {[%clk 0:01:42.2]} 30... b5 {[%clk 0:01:29.1]} 31. h5 {[%clk 0:01:41.6]}
31... gxh5 {[%clk 0:01:29.3]} 32. Nxh5 {[%clk 0:01:29.7]} 32... Ne4+ {[%clk
0:01:29.2]} 33. Kc1 {[%clk 0:01:30.2]} 33... Nxf2 {[%clk 0:01:27.7]} 34. Kb1
{[%clk 0:01:26.4]} 34... Ra8 {[%clk 0:01:15.3]} 35. Nf6+ {[%clk 0:01:19.6]}
35... Kd6 {[%clk 0:01:14.7]} 36. Nxh7 {[%clk 0:00:50.2]} 36... Rh8 {[%clk
0:01:14.4]} 37. Ng5 {[%clk 0:00:43.2]} 37... Rh1+ {[%clk 0:01:13.9]} 38. Ka2
{[%clk 0:00:43.8]} 38... b4 {[%clk 0:01:12.5]} 39. Nf7+ {[%clk 0:00:27.7]} 39...
Kc7 {[%clk 0:00:59.6]} 40. Re7+ {[%clk 0:00:22.8]} 40... Kb6 {[%clk 0:00:59.7]}
41. Kb2 {[%clk 0:00:18.4]} 41... Nd1+ {[%clk 0:00:54.5]} 42. Kc1 {[%clk
0:00:17.9]} 42... Nc3+ {[%clk 0:00:55]} 0-1

[Event "*** Titled Tuesday Blitz"]
[Site "Chess.com"]
[Date "2020.10.20"]
[Round "10"]
[White "nitpicker"]
[Black "TurboSteen"]
[Result "0-1"]
[WhiteElo "2260"]
[BlackElo "2062"]
[TimeControl "180+1"]
[EndTime "11:57:41 PDT"]
[Termination "TurboSteen won on time"]

1. d4 {[%clk 0:03:00.9]} 1... Nf6 {[%clk 0:02:56.1]} 2. c4 {[%clk 0:03:00.8]}
2... g6 {[%clk 0:02:54.8]} 3. Nc3 {[%clk 0:03:00.3]} 3... d5 {[%clk 0:02:53.6]}
4. Nf3 {[%clk 0:03:00.4]} 4... Bg7 {[%clk 0:02:52]} 5. Qb3 {[%clk 0:03:01]} 5...
dxc4 {[%clk 0:02:50.7]} 6. Qxc4 {[%clk 0:03:01.6]} 6... O-O {[%clk 0:02:50.6]}
7. e4 {[%clk 0:03:01.6]} 7... a6 {[%clk 0:02:49.5]} 8. Qb3 {[%clk 0:03:01.4]}
8... b5 {[%clk 0:02:47.5]} 9. e5 {[%clk 0:03:01.4]} 9... Nfd7 {[%clk 0:02:43.8]}
10. h4 {[%clk 0:03:01.9]} 10... c5 {[%clk 0:01:41.8]} 11. e6 {[%clk 0:02:51.9]}
11... c4 {[%clk 0:01:35.5]} 12. Qc2 {[%clk 0:02:39.7]} 12... Nb6 {[%clk
0:01:28]} 13. exf7+ {[%clk 0:02:35.9]} 13... Rxf7 {[%clk 0:01:25.7]} 14. Be3
{[%clk 0:02:11.8]} 14... Nc6 {[%clk 0:01:19.2]} 15. O-O-O {[%clk 0:01:32.4]}
15... Bf5 {[%clk 0:01:15.9]} 16. Qd2 {[%clk 0:01:27]} 16... b4 {[%clk
0:01:13.6]} 17. Ne2 {[%clk 0:01:16]} 17... Nd5 {[%clk 0:01:05.9]} 18. Ng3 {[%clk
0:01:06.3]} 18... c3 {[%clk 0:01:03.9]} 19. Qe1 {[%clk 0:01:01.9]} 19... Qa5
{[%clk 0:01:00.7]} 20. Nxf5 {[%clk 0:00:56]} 20... Qxa2 {[%clk 0:00:55]} 21. Rd2
{[%clk 0:00:16.6]} 21... cxd2+ {[%clk 0:00:43.7]} 22. Qxd2 {[%clk 0:00:14.7]}
22... Qa1+ {[%clk 0:00:38.2]} 23. Kc2 {[%clk 0:00:13.5]} 23... b3+ {[%clk
0:00:38.3]} 24. Kd3 {[%clk 0:00:11.6]} 24... Ncb4+ {[%clk 0:00:36]} 25. Ke2
{[%clk 0:00:07.5]} 25... gxf5 {[%clk 0:00:31.6]} 26. g3 {[%clk 0:00:06.6]} 26...
Rc8 {[%clk 0:00:28.4]} 27. Ne1 {[%clk 0:00:05]} 27... Nxe3 {[%clk 0:00:21.7]}
0-1

[Event "*** Titled Tuesday Blitz"]
[Site "Chess.com"]
[Date "2020.10.20"]
[Round "10"]
[White "xberli"]
[Black "Sergey85Rodchenkov"]
[Result "1-0"]
[WhiteElo "2556"]
[BlackElo "2420"]
[TimeControl "180+1"]
[EndTime "11:57:43 PDT"]
[Termination "xberli won by resignation"]

1. e4 {[%clk 0:03:00.9]} 1... c5 {[%clk 0:02:59.5]} 2. Nf3 {[%clk 0:03:01]} 2...
d6 {[%clk 0:02:59.8]} 3. d4 {[%clk 0:03:00.7]} 3... cxd4 {[%clk 0:02:59.9]} 4.
Nxd4 {[%clk 0:03:01.6]} 4... Nf6 {[%clk 0:02:59.9]} 5. Nc3 {[%clk 0:03:02]} 5...
a6 {[%clk 0:03:00.2]} 6. Bg5 {[%clk 0:03:01.2]} 6... Nbd7 {[%clk 0:02:59.5]} 7.
Bc4 {[%clk 0:03:00.6]} 7... e6 {[%clk 0:02:57.9]} 8. O-O {[%clk 0:02:58.8]} 8...
Qc7 {[%clk 0:02:56.6]} 9. Bb3 {[%clk 0:02:46.9]} 9... b5 {[%clk 0:02:54.6]} 10.
Re1 {[%clk 0:02:45.4]} 10... Bb7 {[%clk 0:02:48.7]} 11. Bxe6 {[%clk 0:02:39.9]}
11... fxe6 {[%clk 0:02:47.6]} 12. Nxe6 {[%clk 0:02:40.8]} 12... Qc4 {[%clk
0:02:47.7]} 13. Nd5 {[%clk 0:02:33]} 13... Kf7 {[%clk 0:02:43.2]} 14. b3 {[%clk
0:02:16.5]} 14... Qc8 {[%clk 0:02:41.7]} 15. Nec7 {[%clk 0:01:52.6]} 15... Bxd5
{[%clk 0:02:33.8]} 16. Nxd5 {[%clk 0:01:49.3]} 16... Be7 {[%clk 0:02:24.8]} 17.
e5 {[%clk 0:01:18.6]} 17... Nxe5 {[%clk 0:02:19.8]} 18. Nxe7 {[%clk 0:01:14.3]}
18... Kxe7 {[%clk 0:02:17.9]} 19. f4 {[%clk 0:01:14]} 19... Qc5+ {[%clk
0:02:13.7]} 20. Kh1 {[%clk 0:01:13.4]} 20... Rhe8 {[%clk 0:01:57.7]} 21. fxe5
{[%clk 0:01:09.6]} 21... dxe5 {[%clk 0:01:58.2]} 22. Qh5 {[%clk 0:01:05.7]}
22... Ke6 {[%clk 0:01:39.1]} 23. Bxf6 {[%clk 0:00:49.1]} 23... gxf6 {[%clk
0:01:38.7]} 24. Qh3+ {[%clk 0:00:48]} 24... Kd6 {[%clk 0:01:31.8]} 25. Rad1+
{[%clk 0:00:46.2]} 25... Kc6 {[%clk 0:01:31.7]} 26. Qd7+ {[%clk 0:00:37.1]}
26... Kb6 {[%clk 0:01:31.5]} 27. Rd6+ {[%clk 0:00:32.6]} 27... Ka5 {[%clk
0:01:31.2]} 28. a3 {[%clk 0:00:25.5]} 28... Qxc2 {[%clk 0:01:25]} 29. Rc6 {[%clk
0:00:19.9]} 29... Qxb3 {[%clk 0:01:06.4]} 30. Qc7+ {[%clk 0:00:19.2]} 30... Ka4
{[%clk 0:01:05.8]} 31. Re4+ {[%clk 0:00:19]} 31... Kxa3 {[%clk 0:01:04.5]} 32.
Rc3 {[%clk 0:00:16.8]} 32... Rac8 {[%clk 0:01:02.2]} 33. Qa5+ {[%clk 0:00:15.7]}
33... Kb2 {[%clk 0:01:01.8]} 34. Rxb3+ {[%clk 0:00:15.5]} 34... Kxb3 {[%clk
0:01:01.3]} 35. Rb4+ {[%clk 0:00:14.7]} 35... Kc3 {[%clk 0:00:58.5]} 36. Qa3+
{[%clk 0:00:12.2]} 36... Kd2 {[%clk 0:00:58.1]} 37. Rb2+ {[%clk 0:00:10.4]}
37... Rc2 {[%clk 0:00:58.5]} 38. Qb4+ {[%clk 0:00:09.3]} 38... Kd3 {[%clk
0:00:56.5]} 39. Qb3+ {[%clk 0:00:06.5]} 39... Rc3 {[%clk 0:00:56.5]} 40. Qd5+
{[%clk 0:00:06.4]} 40... Ke3 {[%clk 0:00:54.7]} 41. Qd2+ {[%clk 0:00:06.3]}
41... Ke4 {[%clk 0:00:53.3]} 42. Qxc3 {[%clk 0:00:06.8]} 1-0

[Event "*** Titled Tuesday Blitz"]
[Site "Chess.com"]
[Date "2020.10.20"]
[Round "10"]
[White "Chamal_Gedgafov"]
[Black "Chessbard1972"]
[Result "0-1"]
[WhiteElo "2163"]
[BlackElo "2291"]
[TimeControl "180+1"]
[EndTime "11:57:45 PDT"]
[Termination "Chessbard1972 won on time"]

1. d4 {[%clk 0:03:00.9]} 1... Nf6 {[%clk 0:02:57.6]} 2. c4 {[%clk 0:03:00.2]}
2... g6 {[%clk 0:02:57.5]} 3. Nc3 {[%clk 0:02:59.9]} 3... Bg7 {[%clk 0:02:57.8]}
4. e4 {[%clk 0:02:59.3]} 4... d6 {[%clk 0:02:58.1]} 5. Nf3 {[%clk 0:02:59.6]}
5... O-O {[%clk 0:02:59]} 6. Be2 {[%clk 0:03:00]} 6... e5 {[%clk 0:02:49.2]} 7.
d5 {[%clk 0:02:59.6]} 7... a5 {[%clk 0:02:48]} 8. Be3 {[%clk 0:02:59.4]} 8...
Na6 {[%clk 0:02:47.2]} 9. Nd2 {[%clk 0:02:59.1]} 9... Nd7 {[%clk 0:02:43.9]} 10.
a3 {[%clk 0:02:58.4]} 10... f5 {[%clk 0:02:37.9]} 11. f3 {[%clk 0:02:56.1]}
11... Bh6 {[%clk 0:02:32.6]} 12. Bf2 {[%clk 0:02:50]} 12... Rb8 {[%clk
0:02:24.2]} 13. O-O {[%clk 0:02:43.5]} 13... b6 {[%clk 0:02:23.1]} 14. Rb1
{[%clk 0:02:41.8]} 14... Nf6 {[%clk 0:02:21.9]} 15. b4 {[%clk 0:02:38.2]} 15...
axb4 {[%clk 0:02:21.4]} 16. axb4 {[%clk 0:02:37.6]} 16... Nh5 {[%clk 0:02:19.1]}
17. c5 {[%clk 0:02:30.6]} 17... bxc5 {[%clk 0:02:16.5]} 18. bxc5 {[%clk
0:02:24]} 18... Rxb1 {[%clk 0:02:16]} 19. Ndxb1 {[%clk 0:02:19.3]} 19... Nxc5
{[%clk 0:02:15.1]} 20. Na4 {[%clk 0:01:54.5]} 20... Nxa4 {[%clk 0:02:11.1]} 21.
Qxa4 {[%clk 0:01:52.6]} 21... Nf4 {[%clk 0:02:10.3]} 22. Bc4 {[%clk 0:01:50.7]}
22... fxe4 {[%clk 0:02:05.6]} 23. fxe4 {[%clk 0:01:49.7]} 23... Qg5 {[%clk
0:02:04.4]} 24. Bg3 {[%clk 0:01:47.5]} 24... Bg4 {[%clk 0:01:49.3]} 25. Nc3
{[%clk 0:01:40.9]} 25... Rb8 {[%clk 0:01:44.8]} 26. Bb5 {[%clk 0:01:16.6]} 26...
Ne2+ {[%clk 0:01:35]} 27. Bxe2 {[%clk 0:00:30.8]} 27... Bxe2 {[%clk 0:01:26.6]}
28. Re1 {[%clk 0:00:16.2]} 28... Qe3+ {[%clk 0:01:23.8]} 29. Bf2 {[%clk
0:00:15.3]} 29... Qxc3 {[%clk 0:01:23.5]} 30. Qd7 {[%clk 0:00:14.3]} 30... Bb5
{[%clk 0:01:07.3]} 31. Qe6+ {[%clk 0:00:12.9]} 31... Kh8 {[%clk 0:01:06.8]} 32.
Bh4 {[%clk 0:00:12.2]} 32... Bg7 {[%clk 0:00:52.8]} 33. h3 {[%clk 0:00:10.3]}
33... Rf8 {[%clk 0:00:49.8]} 34. Be7 {[%clk 0:00:08.3]} 34... Qxe1+ {[%clk
0:00:48.3]} 35. Kh2 {[%clk 0:00:07.5]} 35... Qf2 {[%clk 0:00:46.8]} 36. Bxf8
{[%clk 0:00:03.7]} 36... Qxf8 {[%clk 0:00:46.4]} 0-1

[Event "*** Titled Tuesday Blitz"]
[Site "Chess.com"]
[Date "2020.10.20"]
[Round "10"]
[White "RobPeresian"]
[Black "anon569"]
[Result "1-0"]
[WhiteElo "2412"]
[BlackElo "2264"]
[TimeControl "180+1"]
[EndTime "11:57:46 PDT"]
[Termination "RobPeresian won on time"]

1. Nf3 {[%clk 0:03:00.9]} 1... Nf6 {[%clk 0:02:54.8]} 2. c4 {[%clk 0:03:00.8]}
2... e6 {[%clk 0:02:54]} 3. Nc3 {[%clk 0:03:01]} 3... b6 {[%clk 0:02:54.4]} 4.
g3 {[%clk 0:03:00.5]} 4... Bb7 {[%clk 0:02:54.3]} 5. Bg2 {[%clk 0:03:01.1]} 5...
Bb4 {[%clk 0:02:54.8]} 6. Qc2 {[%clk 0:03:00]} 6... Bxc3 {[%clk 0:02:54.7]} 7.
Qxc3 {[%clk 0:02:59.5]} 7... O-O {[%clk 0:02:53.6]} 8. O-O {[%clk 0:02:59.9]}
8... d6 {[%clk 0:02:53.9]} 9. b3 {[%clk 0:02:57.9]} 9... Nbd7 {[%clk 0:02:54.8]}
10. Bb2 {[%clk 0:02:58.3]} 10... e5 {[%clk 0:02:54.9]} 11. d3 {[%clk 0:02:56.7]}
11... Rb8 {[%clk 0:02:50.8]} 12. e4 {[%clk 0:02:54.8]} 12... Re8 {[%clk
0:02:45.5]} 13. Rfe1 {[%clk 0:02:54.1]} 13... c5 {[%clk 0:02:40.1]} 14. a3
{[%clk 0:02:49]} 14... Nf8 {[%clk 0:02:38.3]} 15. Bh3 {[%clk 0:02:46]} 15... Ne6
{[%clk 0:02:35.7]} 16. Bxe6 {[%clk 0:02:44.7]} 16... fxe6 {[%clk 0:02:36.1]} 17.
b4 {[%clk 0:02:43.6]} 17... Rf8 {[%clk 0:02:35.5]} 18. Nd2 {[%clk 0:02:36]}
18... Ng4 {[%clk 0:02:32.3]} 19. Re2 {[%clk 0:02:36]} 19... Qg5 {[%clk
0:02:31.4]} 20. Nf1 {[%clk 0:02:29.9]} 20... Qh5 {[%clk 0:02:23.8]} 21. Qc2
{[%clk 0:02:26]} 21... Rf3 {[%clk 0:02:18.4]} 22. Bc1 {[%clk 0:02:21.3]} 22...
Rbf8 {[%clk 0:02:16.4]} 23. Be3 {[%clk 0:02:21]} 23... R8f6 {[%clk 0:02:03]} 24.
Kg2 {[%clk 0:02:18.8]} 24... g5 {[%clk 0:01:54.2]} 25. h3 {[%clk 0:02:15.3]}
25... Rh6 {[%clk 0:01:48.1]} 26. h4 {[%clk 0:01:50.8]} 26... Nxe3+ {[%clk
0:00:52.7]} 27. Nxe3 {[%clk 0:01:42.6]} 27... gxh4 {[%clk 0:00:40.1]} 28. Rh1
{[%clk 0:01:41.8]} 28... h3+ {[%clk 0:00:40.4]} 29. Kh2 {[%clk 0:01:39.3]} 29...
Rhf6 {[%clk 0:00:38.3]} 30. Rg1 {[%clk 0:01:31.2]} 30... Qf7 {[%clk 0:00:26.6]}
31. Nd1 {[%clk 0:01:16.5]} 31... d5 {[%clk 0:00:18.6]} 32. cxd5 {[%clk
0:01:12.8]} 32... exd5 {[%clk 0:00:19.5]} 33. bxc5 {[%clk 0:01:13.1]} 33... dxe4
{[%clk 0:00:18.4]} 34. dxe4 {[%clk 0:01:12.8]} 34... Ba6 {[%clk 0:00:18.2]} 35.
Rd2 {[%clk 0:01:11.4]} 35... Rc6 {[%clk 0:00:14.1]} 36. Rd8+ {[%clk 0:01:08]}
36... Kg7 {[%clk 0:00:14.2]} 37. Qd2 {[%clk 0:01:07.8]} 37... Rc7 {[%clk
0:00:09.4]} 38. cxb6 {[%clk 0:01:04.2]} 38... axb6 {[%clk 0:00:08.4]} 39. Qg5+
{[%clk 0:01:03.8]} 39... Qg6 {[%clk 0:00:06.3]} 40. Qxe5+ {[%clk 0:01:03.7]}
40... Kh6 {[%clk 0:00:02.1]} 41. Rd6 {[%clk 0:01:03.3]} 1-0

[Event "*** Titled Tuesday Blitz"]
[Site "Chess.com"]
[Date "2020.10.20"]
[Round "10"]
[White "Quiet_Desperation"]
[Black "Yoshikrov"]
[Result "1-0"]
[WhiteElo "1867"]
[BlackElo "2126"]
[TimeControl "180+1"]
[EndTime "11:57:48 PDT"]
[Termination "Quiet_Desperation won by resignation"]

1. e4 {[%clk 0:03:00.9]} 1... c5 {[%clk 0:02:59.7]} 2. Nf3 {[%clk 0:03:01.2]}
2... Nc6 {[%clk 0:02:58.9]} 3. d4 {[%clk 0:03:02.1]} 3... cxd4 {[%clk 0:02:59]}
4. Nxd4 {[%clk 0:03:03]} 4... Nf6 {[%clk 0:02:59.4]} 5. Nc3 {[%clk 0:03:03.4]}
5... e5 {[%clk 0:02:59.7]} 6. Ndb5 {[%clk 0:03:03.6]} 6... d6 {[%clk 0:03:00.2]}
7. Bg5 {[%clk 0:03:03.9]} 7... a6 {[%clk 0:03:00.3]} 8. Bxf6 {[%clk 0:03:04.4]}
8... gxf6 {[%clk 0:03:00.3]} 9. Na3 {[%clk 0:03:04.7]} 9... b5 {[%clk
0:02:59.9]} 10. Nd5 {[%clk 0:03:05]} 10... f5 {[%clk 0:03:00.4]} 11. Bd3 {[%clk
0:03:04.6]} 11... Be6 {[%clk 0:03:00.5]} 12. c4 {[%clk 0:03:04.8]} 12... b4
{[%clk 0:02:59.7]} 13. Nc2 {[%clk 0:03:04.5]} 13... a5 {[%clk 0:02:51.1]} 14.
O-O {[%clk 0:03:04.5]} 14... Bg7 {[%clk 0:02:41.3]} 15. exf5 {[%clk 0:03:01.8]}
15... Bxd5 {[%clk 0:02:40.5]} 16. cxd5 {[%clk 0:03:01.9]} 16... Ne7 {[%clk
0:02:39.8]} 17. Ne3 {[%clk 0:03:01.8]} 17... O-O {[%clk 0:02:24.1]} 18. Qh5
{[%clk 0:03:01.5]} 18... f6 {[%clk 0:02:22]} 19. f4 {[%clk 0:02:48.1]} 19... Qe8
{[%clk 0:02:19.7]} 20. Qxe8 {[%clk 0:02:45]} 20... Rfxe8 {[%clk 0:02:20.6]} 21.
fxe5 {[%clk 0:02:41.4]} 21... dxe5 {[%clk 0:02:21.5]} 22. d6 {[%clk 0:02:37]}
22... Nc6 {[%clk 0:02:20.8]} 23. Bb5 {[%clk 0:02:24.1]} 23... Nd4 {[%clk
0:01:56.4]} 24. Bxe8 {[%clk 0:02:22.5]} 24... Rxe8 {[%clk 0:01:57.3]} 25. Kf2
{[%clk 0:01:57.9]} 25... Rd8 {[%clk 0:01:56.6]} 26. Nc4 {[%clk 0:01:58.1]} 26...
Nxf5 {[%clk 0:01:56.4]} 27. Rad1 {[%clk 0:01:52.4]} 27... Bh6 {[%clk 0:01:55.5]}
28. g4 {[%clk 0:01:42.5]} 28... Nd4 {[%clk 0:01:48.9]} 29. Kg3 {[%clk
0:01:38.6]} 29... Bf4+ {[%clk 0:01:40.1]} 30. Rxf4 {[%clk 0:01:35]} 30... exf4+
{[%clk 0:01:40.5]} 31. Kxf4 {[%clk 0:01:35.1]} 31... Nb5 {[%clk 0:01:29.7]} 32.
Rd5 {[%clk 0:01:27.9]} 32... Na7 {[%clk 0:01:20.9]} 33. Kf5 {[%clk 0:01:19.9]}
33... Kf7 {[%clk 0:01:20.4]} 34. Rxa5 {[%clk 0:01:19.6]} 34... Nc6 {[%clk
0:01:19.9]} 35. Rc5 {[%clk 0:01:15.3]} 35... Nd4+ {[%clk 0:01:20.1]} 36. Ke4
{[%clk 0:01:11.6]} 36... Ne2 {[%clk 0:01:20.3]} 37. Rc7+ {[%clk 0:01:08]} 37...
Kg6 {[%clk 0:01:18]} 38. h4 {[%clk 0:01:01.6]} 38... h5 {[%clk 0:01:16.3]} 39.
gxh5+ {[%clk 0:01:00.6]} 39... Kxh5 {[%clk 0:01:17.2]} 40. Kf5 {[%clk 0:00:58]}
40... Kxh4 {[%clk 0:01:12.9]} 41. Kxf6 {[%clk 0:00:56.8]} 41... Ng3 {[%clk
0:01:02]} 42. Ke7 {[%clk 0:00:51.7]} 42... Rh8 {[%clk 0:01:02.1]} 43. Ne3 {[%clk
0:00:43.4]} 43... Ne4 {[%clk 0:00:54.8]} 44. d7 {[%clk 0:00:39.8]} 44... Rh7+
{[%clk 0:00:54.4]} 45. Ke6 {[%clk 0:00:38.6]} 45... Ng5+ {[%clk 0:00:52]} 46.
Kd5 {[%clk 0:00:32.3]} 46... Nf7 {[%clk 0:00:39.9]} 47. d8=Q+ {[%clk 0:00:26.7]}
47... Nxd8 {[%clk 0:00:38.3]} 48. Rxh7+ {[%clk 0:00:26.5]} 1-0